bitfinex/quotes_SOLUSD_20230110
["timestamp","ask_amount","ask_price","bid_price","bid_amount"]
[1673386839068,17.0,16.511,16.503,31.06279441]
[1673386841711,37.0,16.512,16.503,31.06279441]
[1673386842871,20.0,16.511,16.503,31.06279441]
[1673386846535,6.0803818,16.521,16.504,34.92]
[1673386846748,6.0803818,16.521,16.51,25.02]
[1673386846951,26.0803818,16.521,16.51,25.02]
[1673386847165,26.0803818,16.521,16.511,65.04279441]
[1673386847482,6.0803818,16.521,16.511,65.04279441]
[1673386847700,26.0803818,16.521,16.512,11.06279441]
[1673386847905,26.0803818,16.521,16.513,20.0]
[1673386848431,20.0,16.519,16.513,20.0]
[1673386848660,17.0,16.518,16.513,20.0]
[1673386849391,17.0,16.518,16.513,31.06279441]
[1673386850236,17.0,16.518,16.513,20.0]
[1673386850550,20.0,16.517,16.513,20.0]
[1673386850735,17.0,16.516,16.511,20.0]
[1673386851071,17.0,16.516,16.512,20.0]
[1673386851477,45.43,16.518,16.512,31.06279441]
[1673386851687,17.0,16.517,16.512,31.06279441]
[1673386852836,45.43,16.519,16.512,31.06279441]
[1673386853046,17.0,16.518,16.512,31.06279441]
[1673386853269,71.5003818,16.521,16.512,31.06279441]
[1673386854850,71.5003818,16.521,16.512,20.0]
[1673386855061,71.5003818,16.521,16.513,11.06279441]
[1673386855271,71.5003818,16.521,16.514,20.0]
[1673386855797,71.5003818,16.521,16.514,31.06279441]
[1673386862079,17.0,16.52,16.514,31.06279441]
[1673386863565,71.5003818,16.521,16.514,31.06279441]
[1673386863779,26.0803818,16.521,16.514,31.06279441]
[1673386866104,26.0803818,16.521,16.514,20.0]
[1673386866734,26.0803818,16.521,16.511,20.0]
[1673386866952,26.0803818,16.521,16.513,11.06279441]
[1673386867259,26.0803818,16.521,16.514,20.0]
[1673386869255,62.42,16.52,16.514,20.0]
[1673386869778,62.42,16.52,16.51,24.87]
[1673386869779,20.0,16.519,16.511,31.06279441]
[1673386869998,20.0,16.519,16.511,20.0]
[1673386869999,17.0,16.518,16.511,20.0]
[1673386871461,17.0,16.518,16.511,31.06279441]
[1673386874832,20.0,16.519,16.511,31.06279441]
[1673386875047,20.0,16.519,16.512,11.06279441]
[1673386875253,20.0,16.519,16.513,20.0]
[1673386875572,20.0,16.519,16.513,31.06279441]
[1673386875989,17.0,16.518,16.513,31.06279441]
[1673386877552,45.42,16.52,16.513,31.06279441]
[1673386877774,26.0803818,16.521,16.513,31.06279441]
[1673386878500,20.0,16.519,16.513,31.06279441]
[1673386879891,17.0,16.518,16.513,31.06279441]
[1673386880411,65.43,16.519,16.513,31.06279441]
[1673386880601,17.0,16.518,16.513,31.06279441]
[1673386880814,20.0,16.516,16.506,58.43353215]
[1673386881033,62.44,16.515,16.507,11.06279441]
[1673386881239,20.0,16.514,16.507,11.06279441]
[1673386883142,126.7617,16.515,16.505,12.9]
[1673386883143,126.7617,16.515,16.506,20.0]
[1673386883346,126.7617,16.515,16.505,12.9]
[1673386883542,20.0,16.514,16.507,11.06279441]
[1673386883757,17.0,16.513,16.507,11.06279441]
[1673386885661,17.0,16.513,16.505,73.21323162]
[1673386885662,17.0,16.513,16.505,57.17323162]
[1673386885866,20.0,16.512,16.505,57.17323162]
[1673386886193,17.0,16.511,16.505,57.17323162]
[1673386886812,20.0,16.513,16.505,57.17323162]
[1673386887025,65.44,16.514,16.506,11.06279441]
[1673386887228,109.7617,16.515,16.506,11.06279441]
[1673386887443,109.7617,16.515,16.51,24.95]
[1673386889242,109.7617,16.515,16.51,36.01279441]
[1673386889641,45.43,16.519,16.511,20.0]
[1673386889963,6.0803818,16.521,16.511,88.13264862]
[1673386890178,6.0803818,16.521,16.512,11.06279441]
[1673386890388,6.0803818,16.521,16.513,20.0]
[1673386890713,6.0803818,16.521,16.514,11.06279441]
[1673386891321,6.0803818,16.521,16.516,20.0]
[1673386891736,6.0803818,16.521,16.517,11.06279441]
[1673386893738,20.0,16.53,16.519,20.0]
[1673386893958,20.0,16.53,16.521,20.0]
[1673386894174,161.027,16.534,16.522,40.6]
[1673386894379,161.027,16.534,16.523,20.0]
[1673386894591,161.027,16.534,16.523,31.06279441]
[1673386894811,161.027,16.534,16.524,20.0]
[1673386895014,161.027,16.534,16.524,31.06279441]
[1673386895219,20.0,16.532,16.525,11.06279441]
[1673386896469,161.027,16.534,16.525,11.06279441]
[1673386896700,115.647,16.534,16.525,11.06279441]
[1673386897118,20.0,16.533,16.525,11.06279441]
[1673386897659,115.647,16.534,16.525,11.06279441]
[1673386899452,20.0,16.533,16.525,11.06279441]
[1673386900518,131.3247,16.533,16.525,11.06279441]
[1673386901457,20.0,16.533,16.525,11.06279441]
[1673386902083,20.0,16.533,16.524,20.0]
[1673386902295,131.3247,16.533,16.523,31.06279441]
[1673386903331,131.3247,16.533,16.524,11.06279441]
[1673386903551,161.027,16.534,16.525,20.0]
[1673386903767,115.647,16.534,16.525,20.0]
[1673386903971,115.647,16.534,16.526,11.06279441]
[1673386904172,20.0,16.533,16.526,11.06279441]
[1673386905121,115.647,16.534,16.526,11.06279441]
[1673386905332,17.0,16.533,16.526,11.06279441]
[1673386905542,20.0,16.532,16.523,20.0]
[1673386905753,17.0,16.531,16.521,20.0]
[1673386905963,62.39,16.531,16.521,20.0]
[1673386906185,45.39,16.531,16.522,11.06279441]
[1673386906399,45.39,16.531,16.523,20.0]
[1673386906595,65.39,16.533,16.523,20.0]
[1673386906801,65.39,16.533,16.524,11.06279441]
[1673386907013,65.39,16.533,16.524,43.88279441]
[1673386907223,65.39,16.533,16.524,11.06279441]
[1673386907548,178.2361,16.533,16.525,11.06279441]
[1673386907973,20.0,16.533,16.525,11.06279441]
[1673386910172,45.39,16.532,16.523,20.0]
[1673386910390,20.0,16.53,16.522,11.06279441]
[1673386910708,20.0,16.528,16.523,20.0]
[1673386911761,45.4,16.529,16.523,31.06279441]
[1673386912595,20.0,16.53,16.523,31.06279441]
[1673386913027,45.39,16.531,16.523,31.06279441]
[1673386913234,20.0,16.53,16.523,31.06279441]
[1673386913445,45.4,16.529,16.523,31.06279441]
[1673386913638,20.0,16.53,16.523,31.06279441]
[1673386913972,20.0,16.53,16.523,20.0]
[1673386914168,20.0,16.53,16.523,11.06279441]
[1673386914580,20.0,16.53,16.524,20.0]
[1673386914787,65.39,16.532,16.524,20.0]
[1673386914999,20.0,16.531,16.524,20.0]
[1673386916179,17.0,16.53,16.521,20.0]
[1673386916711,20.0,16.529,16.521,20.0]
[1673386916902,20.0,16.529,16.521,31.06279441]
[1673386917758,20.0,16.529,16.521,20.0]
[1673386918683,20.0,16.527,16.521,20.0]
[1673386918905,17.0,16.526,16.521,20.0]
[1673386919122,17.0,16.526,16.517,20.0]
[1673386919334,17.0,16.526,16.518,27.92]
[1673386919651,17.0,16.526,16.519,20.0]
[1673386920285,17.0,16.526,16.518,20.0]
[1673386920686,17.0,16.526,16.519,29.05]
[1673386921333,17.0,16.526,16.52,20.0]
[1673386921544,20.0,16.527,16.52,20.0]
[1673386922179,20.0,16.527,16.518,20.0]
[1673386922787,20.0,16.527,16.493,31.22726377]
[1673386922788,62.41,16.526,16.51,24.79]
[1673386923000,20.0,16.525,16.51,35.85279441]
[1673386923318,20.0,16.523,16.51,35.85279441]
[1673386923528,62.42,16.522,16.51,35.85279441]
[1673386923741,20.0,16.521,16.51,35.85279441]
[1673386924052,62.42,16.52,16.51,35.85279441]
[1673386924263,62.42,16.52,16.511,20.0]
[1673386924475,20.0,16.519,16.511,20.0]
[1673386924689,20.0,16.519,16.511,31.06279441]
[1673386927202,62.43,16.518,16.511,31.06279441]
[1673386927525,20.0,16.517,16.511,31.06279441]
[1673386932678,17.0,16.518,16.511,31.06279441]
[1673386935310,20.0,16.519,16.511,31.06279441]
[1673386936587,65.42,16.521,16.511,31.06279441]
[1673386937525,65.42,16.521,16.511,20.0]
[1673386937953,65.42,16.521,16.512,11.06279441]
[1673386938141,45.42,16.521,16.513,20.0]
[1673386938351,45.41,16.523,16.513,20.0]
[1673386938561,45.41,16.523,16.514,11.06279441]
[1673386939114,20.0,16.521,16.514,11.06279441]
[1673386939738,20.0,16.521,16.513,20.0]
[1673386939945,17.0,16.52,16.511,20.0]
[1673386940160,17.0,16.52,16.512,11.06279441]
[1673386940367,17.0,16.52,16.513,20.0]
[1673386940768,133.8811,16.533,16.513,20.0]
[1673386940769,113.8811,16.533,16.514,31.06279441]
[1673386940979,113.8811,16.533,16.52,24.99]
[1673386940980,20.0,16.532,16.52,24.99]
[1673386941193,20.0,16.532,16.521,20.0]
[1673386941418,65.39,16.532,16.521,20.0]
[1673386942891,17.0,16.531,16.521,20.0]
[1673386943833,20.0,16.53,16.521,20.0]
[1673386944048,17.0,16.529,16.521,20.0]
[1673386950065,14.5,16.529,16.521,20.0]
[1673386952059,59.9,16.529,16.521,20.0]
[1673386952457,45.4,16.529,16.521,20.0]
[1673386952677,20.0,16.53,16.521,20.0]
[1673386953630,20.0,16.53,16.521,31.06279441]
[1673386954370,45.39,16.531,16.521,31.06279441]
[1673386954570,113.8811,16.533,16.521,31.06279441]
[1673386954571,45.39,16.532,16.522,3.727]
[1673386954770,20.0,16.532,16.522,3.727]
[1673386954982,17.0,16.531,16.522,3.727]
[1673386955197,20.0,16.532,16.522,3.727]
[1673386955198,159.2711,16.533,16.523,11.06279441]
[1673386955414,20.0,16.537,16.525,20.0]
[1673386955611,45.38,16.536,16.53,24.82]
[1673386956253,45.38,16.536,16.521,20.0]
[1673386956580,20.0,16.535,16.521,20.0]
[1673386956774,62.38,16.534,16.521,20.0]
[1673386956986,20.0,16.533,16.521,20.0]
[1673386957198,20.0,16.531,16.521,20.0]
[1673386957431,20.0,16.529,16.521,20.0]
[1673386957622,45.4,16.528,16.521,20.0]
[1673386961839,20.0,16.529,16.521,20.0]
[1673386962891,17.0,16.528,16.521,20.0]
[1673386963409,62.4,16.528,16.521,20.0]
[1673386963601,17.0,16.528,16.521,20.0]
[1673386965194,20.0,16.527,16.521,20.0]
[1673386965399,17.0,16.526,16.521,20.0]
[1673386968559,17.0,16.526,16.51,125.03]
[1673386968749,20.0,16.524,16.51,125.03]
[1673386968958,62.41,16.523,16.51,125.03]
[1673386969390,20.0,16.522,16.511,20.0]
[1673386969698,45.42,16.521,16.511,31.06279441]
[1673386969920,45.41,16.523,16.511,31.06279441]
[1673386970123,17.0,16.522,16.511,31.06279441]
[1673386970338,17.0,16.523,16.511,31.06279441]
[1673386970555,155.4011,16.524,16.512,11.06279441]
[1673386970867,109.9911,16.524,16.513,17.0]
[1673386971056,109.9911,16.524,16.512,11.06279441]
[1673386971481,109.9911,16.524,16.513,37.0]
[1673386971813,109.9911,16.524,16.513,20.0]
[1673386972014,62.41,16.523,16.513,20.0]
[1673386972232,62.41,16.523,16.511,20.0]
[1673386972540,20.0,16.522,16.511,20.0]
[1673386972761,20.0,16.52,16.511,20.0]
[1673386973180,62.43,16.519,16.511,20.0]
[1673386973378,20.0,16.518,16.511,20.0]
[1673386973591,17.0,16.517,16.511,20.0]
[1673386974113,45.43,16.516,16.511,20.0]
[1673386974325,17.0,16.515,16.511,20.0]
[1673386974734,17.0,16.516,16.506,20.0]
[1673386974941,45.44,16.515,16.506,20.0]
[1673386975371,20.0,16.513,16.501,10.74899562]
[1673386975576,62.44,16.512,16.502,20.0]
[1673386975794,62.44,16.512,16.501,10.74899562]
[1673386976649,62.44,16.512,16.501,13.63699562]
[1673386977809,62.44,16.512,16.5,175.28140189]
[1673386978328,62.44,16.512,16.501,7.207]
[1673386978754,20.0,16.511,16.501,7.207]
[1673386978973,17.0,16.51,16.502,20.0]
[1673386979701,17.0,16.51,16.501,20.0]
[1673386980633,45.44,16.512,16.501,20.0]
[1673386980634,17.0,16.511,16.501,20.0]
[1673386984953,20.0,16.51,16.501,20.0]
[1673386985140,17.0,16.509,16.501,20.0]
[1673386990509,65.46,16.508,16.501,20.0]
[1673386990712,17.0,16.507,16.497,20.0]
[1673386991148,45.46,16.506,16.497,20.0]
[1673386991359,17.0,16.505,16.497,20.0]
[1673386991656,17.0,16.505,16.496,20.0]
[1673386991870,17.0,16.506,16.496,20.0]
[1673386995666,17.0,16.506,16.495,24.208]
[1673386995988,17.0,16.506,16.494,4.594]
[1673386996178,20.0,16.504,16.49,140.62399562]
[1673386996389,62.47,16.503,16.49,24.96]
[1673386997232,20.0,16.502,16.49,24.96]
[1673386997442,20.0,16.5,16.49,24.96]
[1673386997657,20.0,16.5,16.491,20.0]
[1673386999345,17.0,16.499,16.491,20.0]
[1673387001552,45.48,16.498,16.491,20.0]
[1673387001741,17.0,16.497,16.491,20.0]
[1673387001953,20.0,16.498,16.491,20.0]
[1673387002287,17.0,16.497,16.491,20.0]
[1673387005762,17.0,16.497,16.486,50.30140189]
[1673387005763,62.49,16.497,16.481,6.805]
[1673387005957,21.98554596,16.496,16.481,6.805]
[1673387006174,62.49,16.495,16.481,6.805]
[1673387006488,21.98554596,16.494,16.481,6.805]
[1673387006695,1.98554596,16.492,16.481,57.10640189]
[1673387006906,20.0,16.492,16.481,57.10640189]
[1673387007107,17.0,16.491,16.481,57.10640189]
[1673387007866,17.0,16.491,16.482,20.0]
[1673387007867,62.5,16.491,16.482,20.0]
[1673387008595,20.0,16.49,16.482,20.0]
[1673387009422,17.0,16.489,16.482,20.0]
[1673387013223,45.5,16.491,16.482,20.0]
[1673387013414,65.49,16.496,16.483,20.0]
[1673387013767,20.0,16.496,16.484,70.30140189]
[1673387014074,45.49,16.495,16.484,80.850017]
[1673387014382,45.48,16.499,16.486,20.0]
[1673387014571,45.48,16.499,16.49,24.81]
[1673387014781,45.48,16.499,16.491,20.0]
[1673387015001,108.9706,16.501,16.491,20.0]
[1673387015002,65.48,16.5,16.491,20.0]
[1673387015531,20.0,16.499,16.491,20.0]
[1673387015745,17.0,16.496,16.491,20.0]
[1673387017313,20.0,16.499,16.491,20.0]
[1673387017539,17.0,16.498,16.491,20.0]
[1673387018168,17.0,16.498,16.486,61.00370162]
[1673387018169,45.49,16.497,16.492,30.30140189]
[1673387018368,37.0,16.496,16.48,24.81]
[1673387018578,20.0,16.494,16.48,24.81]
[1673387018788,20.0,16.492,16.48,24.81]
[1673387019019,45.5,16.491,16.48,24.81]
[1673387019226,17.0,16.49,16.48,24.81]
[1673387019413,45.51,16.489,16.48,24.81]
[1673387019628,17.0,16.488,16.48,24.81]
[1673387021232,17.0,16.488,16.481,20.0]
[1673387022279,62.51,16.489,16.481,20.0]
[1673387023641,20.0,16.488,16.481,20.0]
[1673387023847,17.0,16.487,16.481,20.0]
[1673387024791,45.51,16.489,16.481,20.0]
[1673387024992,20.0,16.49,16.481,20.0]
[1673387026172,17.0,16.489,16.481,20.0]
[1673387026367,45.51,16.488,16.481,20.0]
[1673387026690,17.0,16.487,16.481,20.0]
[1673387027217,45.52,16.486,16.481,20.0]
[1673387027405,17.0,16.485,16.481,20.0]
[1673387027615,17.0,16.485,16.474,7.393]
[1673387027942,20.0,16.483,16.471,5.651]
[1673387028145,62.53,16.482,16.47,24.96]
[1673387028901,20.0,16.481,16.47,24.96]
[1673387029086,62.53,16.48,16.47,24.96]
[1673387029734,20.0,16.479,16.47,24.96]
[1673387029942,62.54,16.478,16.471,20.0]
[1673387030473,110.5093,16.488,16.471,30.54861511]
[1673387030667,110.5093,16.488,16.473,20.0]
[1673387030874,110.5093,16.488,16.474,20.0]
[1673387031106,45.52,16.485,16.474,20.0]
[1673387031293,20.0,16.484,16.474,30.54861511]
[1673387031499,45.52,16.483,16.474,20.0]
[1673387031837,20.0,16.482,16.473,20.0]
[1673387032046,45.53,16.481,16.471,20.0]
[1673387032761,17.0,16.48,16.471,20.0]
[1673387034560,45.54,16.479,16.471,20.0]
[1673387034886,17.0,16.478,16.471,68.45528039]
[1673387041924,17.0,16.478,16.471,20.0]
[1673387042138,62.54,16.479,16.471,20.0]
[1673387043924,17.0,16.479,16.47,125.1]
[1673387044132,45.54,16.478,16.46,125.79]
[1673387044444,37.0,16.477,16.46,125.79]
[1673387044657,20.0,16.475,16.461,20.0]
[1673387044875,62.55,16.474,16.461,20.0]
[1673387045056,20.0,16.473,16.461,20.0]
[1673387045266,62.56,16.472,16.46,172.34079498]
[1673387045472,62.56,16.472,16.461,20.0]
[1673387045706,62.56,16.472,16.464,20.0]
[1673387045896,20.0,16.471,16.464,20.0]
[1673387046234,17.0,16.47,16.464,20.0]
[1673387046634,17.0,16.47,16.46,172.34079498]
[1673387046844,17.0,16.47,16.463,8.18e-05]
[1673387047056,67.85963555,16.469,16.45,24.94]
[1673387047390,37.0,16.468,16.45,24.94]
[1673387047612,47.86963555,16.467,16.45,35.47972811]
[1673387048213,17.0,16.466,16.45,35.47972811]
[1673387048543,22.29963555,16.464,16.45,35.47972811]
[1673387048740,62.58,16.463,16.45,24.94]
[1673387048949,20.0,16.462,16.45,24.94]
[1673387049183,62.59,16.461,16.45,24.94]
[1673387049368,20.0,16.46,16.45,24.94]
[1673387049584,17.0,16.459,16.45,24.94]
[1673387050121,62.59,16.459,16.451,20.0]
[1673387050737,45.59,16.459,16.451,20.0]
[1673387050941,45.59,16.461,16.451,20.0]
[1673387051296,20.0,16.475,16.451,84.10513352]
[1673387051491,20.0,16.475,16.46,24.92]
[1673387051801,1.63289683,16.472,16.461,20.0]
[1673387051996,45.56,16.471,16.461,73.56540541]
[1673387052209,20.0,16.471,16.461,73.56540541]
[1673387052427,47.23622529,16.47,16.461,20.0]
[1673387052752,1.67622529,16.468,16.461,20.0]
[1673387052940,18.67622529,16.468,16.461,20.0]
[1673387053778,1.67622529,16.468,16.461,20.0]
[1673387054308,1.67622529,16.468,16.462,45.7406916]
[1673387054514,20.0,16.469,16.462,45.7406916]
[1673387054727,1.55330288,16.468,16.463,20.0]
[1673387054931,20.0,16.469,16.463,20.0]
[1673387055378,17.0,16.468,16.463,20.0]
[1673387055603,1.65314111,16.467,16.462,45.7406916]
[1673387055796,1.65314111,16.465,16.46,24.92]
[1673387056003,18.65314111,16.465,16.457,45.7406916]
[1673387056215,20.0,16.464,16.457,45.7406916]
[1673387056425,17.0,16.463,16.457,45.7406916]
[1673387058746,17.0,16.463,16.457,99.30609701]
[1673387059812,20.0,16.465,16.457,99.30609701]
[1673387060022,18.72227028,16.464,16.457,99.30609701]
[1673387060447,20.0,16.465,16.457,99.30609701]
[1673387060638,1.62610606,16.464,16.457,99.30609701]
[1673387061808,20.0,16.465,16.457,99.30609701]
[1673387062020,1.54587512,16.464,16.457,99.30609701]
[1673387062630,20.0,16.465,16.457,99.30609701]
[1673387064231,1.5736266,16.464,16.457,99.30609701]
[1673387065272,18.5736266,16.464,16.458,40.38591171]
[1673387065479,65.58,16.463,16.458,40.38591171]
[1673387065800,20.0,16.461,16.45,25.28]
[1673387065988,62.59,16.46,16.451,20.0]
[1673387066418,20.0,16.459,16.451,20.0]
[1673387066632,17.0,16.458,16.451,20.0]
[1673387067457,45.59,16.46,16.451,20.0]
[1673387067696,45.58,16.462,16.452,20.0]
[1673387067882,45.58,16.463,16.453,20.0]
[1673387068093,156.946,16.464,16.453,116.18609701]
[1673387068325,156.946,16.464,16.454,20.0]
[1673387068524,111.366,16.464,16.454,62.6206916]
[1673387068718,111.366,16.464,16.454,116.18609701]
[1673387069459,17.0,16.463,16.454,116.18609701]
[1673387069669,17.0,16.463,16.454,96.18609701]
[1673387069885,37.0,16.463,16.454,96.18609701]
[1673387070736,17.0,16.463,16.454,96.18609701]
[1673387072332,45.57,16.466,16.454,96.18609701]
[1673387072545,45.57,16.466,16.455,20.0]
[1673387072756,45.57,16.466,16.455,62.6206916]
[1673387073278,20.0,16.469,16.455,62.6206916]
[1673387073279,20.0,16.478,16.46,25.11]
[1673387073492,20.0,16.478,16.461,20.0]
[1673387073493,137.171,16.475,16.461,20.0]
[1673387073684,137.171,16.475,16.462,20.0]
[1673387073895,20.0,16.473,16.463,20.0]
[1673387074107,20.0,16.473,16.463,130.52293792]
[1673387074525,20.0,16.473,16.464,53.56540541]
[1673387074741,20.0,16.473,16.463,20.0]
[1673387074742,45.56,16.472,16.463,20.0]
[1673387074953,45.56,16.472,16.461,20.0]
[1673387074954,20.0,16.471,16.461,20.0]
[1673387075275,20.0,16.471,16.463,10.24495413]
[1673387075459,45.56,16.472,16.463,10.24495413]
[1673387075677,65.55,16.473,16.464,20.0]
[1673387075882,20.0,16.479,16.464,20.0]
[1673387076104,113.3485,16.495,16.47,125.51]
[1673387076325,20.0,16.487,16.472,20.0]
[1673387076529,45.49,16.494,16.48,24.92]
[1673387076848,20.0,16.493,16.481,20.0]
[1673387077163,45.5,16.492,16.481,30.24495413]
[1673387077901,37.0,16.491,16.47,125.57]
[1673387078108,37.0,16.491,16.476,10.24495413]
[1673387078109,45.51,16.49,16.476,10.24495413]
[1673387078427,20.0,16.489,16.476,10.24495413]
[1673387078649,20.0,16.487,16.476,10.24495413]
[1673387078849,45.52,16.486,16.472,20.0]
[1673387079164,20.0,16.485,16.473,10.24495413]
[1673387079362,45.52,16.486,16.474,20.0]
[1673387079570,20.0,16.487,16.475,20.82]
[1673387079778,20.0,16.487,16.475,31.06495413]
[1673387080110,20.0,16.485,16.475,20.82]
[1673387080295,45.52,16.484,16.475,20.82]
[1673387080510,20.0,16.485,16.474,41.1]
[1673387080732,45.52,16.484,16.474,20.0]
[1673387080927,45.52,16.484,16.474,30.24495413]
[1673387081244,17.0,16.483,16.474,30.24495413]
[1673387082730,20.0,16.482,16.474,75.89897906]
[1673387082945,17.0,16.481,16.474,30.24495413]
[1673387084001,17.0,16.481,16.474,20.0]
[1673387084307,17.0,16.481,16.472,30.24495413]
[1673387084731,17.0,16.481,16.473,10.24495413]
[1673387085051,17.0,16.481,16.474,20.0]
[1673387085286,17.0,16.482,16.474,20.0]
[1673387087279,20.0,16.481,16.474,20.0]
[1673387087489,17.0,16.48,16.474,20.0]
[1673387087882,65.54,16.479,16.474,20.0]
[1673387088092,17.0,16.478,16.471,20.0]
[1673387089901,17.0,16.478,16.471,30.24495413]
[1673387090109,17.0,16.479,16.471,30.24495413]
[1673387092117,17.0,16.479,16.471,20.0]
[1673387092932,24.87,16.51,16.472,153.003387]
[1673387093146,111.8123,16.503,16.49,25.0]
[1673387093357,20.0,16.502,16.491,45.5]
[1673387093566,20.0,16.502,16.492,20.0]
[1673387093777,20.0,16.502,16.493,45.5]
[1673387093992,20.0,16.502,16.494,20.0]
[1673387094739,20.0,16.502,16.492,20.0]
[1673387094926,20.0,16.502,16.493,45.5]
[1673387095132,20.0,16.502,16.494,20.0]
[1673387095775,20.0,16.502,16.492,20.0]
[1673387095972,20.0,16.502,16.493,45.5]
[1673387096192,17.0,16.501,16.494,20.0]
[1673387096622,17.0,16.501,16.492,20.0]
[1673387097378,20.0,16.5,16.492,20.0]
[1673387097581,17.0,16.499,16.492,20.0]
[1673387098111,17.0,16.499,16.493,45.5]
[1673387098317,17.0,16.499,16.494,20.0]
[1673387098515,17.0,16.499,16.492,20.0]
[1673387099251,17.0,16.499,16.491,20.0]
[1673387100513,17.0,16.499,16.492,45.5]
[1673387100842,111.8123,16.503,16.493,20.0]
[1673387101049,111.8123,16.503,16.494,45.49]
[1673387101261,111.8123,16.503,16.494,55.65155846]
[1673387101452,111.8123,16.503,16.495,10.16155846]
[1673387101666,111.8123,16.503,16.496,45.49]
[1673387101877,20.0,16.502,16.496,45.49]
[1673387102092,20.0,16.502,16.497,10.16155846]
[1673387102520,20.0,16.505,16.497,10.16155846]
[1673387104107,17.0,16.504,16.497,10.16155846]
[1673387106509,20.0,16.507,16.498,45.48]
[1673387106718,17.0,16.506,16.5,25.03]
[1673387107042,17.0,16.506,16.501,55.64155846]
[1673387107448,17.0,16.506,16.502,10.16155846]
[1673387107679,17.0,16.506,16.503,20.0]
[1673387108119,17.0,16.506,16.504,10.16155846]
[1673387108945,20.0,16.51,16.504,10.16155846]
[1673387109997,131.407,16.511,16.504,10.16155846]
[1673387111043,131.407,16.511,16.503,20.0]
[1673387111271,20.0,16.509,16.491,53.52177844]
[1673387111486,20.0,16.507,16.492,20.0]
[1673387111796,62.46,16.506,16.493,10.16155846]
[1673387111992,20.0,16.505,16.491,45.5]
[1673387112323,17.0,16.504,16.491,45.5]
[1673387112848,20.0,16.503,16.491,45.5]
[1673387113059,17.0,16.502,16.491,45.5]
[1673387113268,17.0,16.502,16.492,20.0]
[1673387113597,17.0,16.502,16.491,45.5]
[1673387113989,20.0,16.501,16.491,45.5]
[1673387114829,20.0,16.501,16.492,20.0]
[1673387115357,17.0,16.502,16.492,20.0]
[1673387115566,17.0,16.502,16.493,45.5]
[1673387115780,20.0,16.501,16.494,20.0]
[1673387115997,17.0,16.5,16.494,20.0]
[1673387116843,17.0,16.5,16.492,20.0]
[1673387119053,20.0,16.499,16.492,20.0]
[1673387119244,17.0,16.498,16.492,20.0]
[1673387120827,20.0,16.502,16.492,20.0]